bitfinex/quotes_ETHUSD_20251116
["timestamp","ask_amount","ask_price","bid_price","bid_amount"]
[1763263067089,0.002,3203.3,3203.2,1.19353743]
[1763263070882,0.002,3203.3,3203.2,1.72185621]
[1763263071212,0.002,3203.3,3203.2,3.37718719]
[1763263071905,0.002,3203.5,3203.2,1.72185621]
[1763263072076,0.002,3203.5,3203.4,6.05289559]
[1763263072402,0.002,3203.5,3203.4,10.77631632]
[1763263072606,0.002,3203.5,3203.4,11.27341632]
[1763263073551,0.002,3203.5,3203.4,11.67892032]
[1763263073761,0.002,3204.0,3203.9,4.45435479]
[1763263073941,0.002,3204.0,3203.9,5.41625479]
[1763263074253,0.002,3204.0,3203.9,7.77789066]
[1763263074567,0.002,3204.0,3203.9,6.12333576]
[1763263076970,0.002,3204.0,3203.9,7.77789066]
[1763263078029,0.6406,3205.2,3204.0,1.5392448]
[1763263078335,0.6406,3205.2,3204.7,5.2813821]
[1763263078511,0.4848,3204.8,3204.7,6.4151229]
[1763263079715,0.4534,3205.1,3204.7,6.8799229]
[1763263079911,0.4848,3204.8,3204.7,6.4151229]
[1763263080161,0.4848,3204.8,3204.7,7.1669055]
[1763263080314,0.4848,3204.8,3204.7,6.33987819]
[1763263081608,0.4534,3205.1,3204.7,6.80467819]
[1763263081856,0.1872,3205.2,3204.9,0.8279485]
[1763263082258,0.4848,3205.0,3204.9,0.8279485]
[1763263082622,0.9382,3205.0,3204.9,0.8279485]
[1763263082831,0.9382,3205.0,3204.9,1.54473117]
[1763263083136,0.6406,3205.2,3204.9,1.18158267]
[1763263083337,0.4534,3205.5,3205.2,1.1337408]
[1763263083848,0.4848,3205.3,3205.2,1.1337408]
[1763263084154,0.1873,3206.5,3205.3,0.405504]
[1763263084310,0.1873,3206.5,3206.3,4.45435479]
[1763263084509,0.6761,3206.5,3206.3,4.45435479]
[1763263084713,0.4779,3206.4,3206.0,1.1337408]
[1763263085031,0.4779,3206.1,3206.0,1.1337408]
[1763263085346,0.4779,3206.1,3205.5,1.1337408]
[1763263085548,0.4888,3206.1,3205.6,0.23134427]
[1763263085713,0.4888,3206.1,3205.7,4.45435479]
[1763263086238,0.4779,3205.8,3205.7,5.58809559]
[1763263086438,0.666,3205.8,3205.7,5.58809559]
[1763263086638,1.1539,3205.8,3205.7,5.58809559]
[1763263087845,0.666,3205.8,3205.7,5.58809559]
[1763263088035,1.1539,3205.8,3205.7,5.58809559]
[1763263088445,0.4779,3205.8,3205.7,5.58809559]
[1763263090043,0.4888,3206.1,3205.7,6.14690515]
[1763263090746,0.1893,3206.5,3206.0,0.4988]
[1763263090922,0.6781,3206.5,3206.3,4.45435479]
[1763263091112,0.6781,3206.5,3205.9,3.83]
[1763263091319,0.4888,3206.4,3206.0,1.5167408]
[1763263092351,0.4771,3206.1,3206.0,1.5167408]
[1763263093839,0.9374,3206.1,3206.0,1.5167408]
[1763263094835,0.9374,3206.1,3206.0,0.383]
[1763263095365,0.4771,3206.1,3206.0,0.383]
[1763263095683,0.6496,3206.5,3206.0,0.883]
[1763263096050,0.4603,3206.4,3206.0,0.383]
[1763263096247,0.4603,3206.4,3206.1,0.48373548]
[1763263096760,0.4663,3206.2,3206.1,0.48373548]
[1763263096936,0.4663,3206.2,3206.1,3.99275842]
[1763263100032,0.9266,3206.2,3205.7,0.55880956]
[1763263100268,0.2241,3205.8,3205.7,4.64276374]
[1763263100768,0.6844,3205.8,3205.7,4.64276374]
[1763263100968,0.6844,3205.8,3205.7,1.1337408]
[1763263102066,0.6844,3205.8,3205.3,1.95741861]
[1763263102272,0.4603,3205.7,3205.4,0.64073471]
[1763263102440,0.4603,3205.7,3205.4,1.46441252]
[1763263102637,0.4663,3205.5,3205.4,1.46441252]
[1763263103255,0.1803,3205.8,3205.4,1.46441252]
[1763263103464,0.4603,3206.1,3205.4,1.46441252]
[1763263103465,0.4603,3206.1,3205.6,4.44992844]
[1763263103645,0.4603,3206.1,3205.6,5.09023217]
[1763263103838,0.4603,3206.1,3205.6,5.91390998]
[1763263104240,0.1893,3206.5,3205.6,6.37140998]
[1763263104436,0.4603,3206.4,3205.6,6.37140998]
[1763263105478,0.4603,3206.4,3205.7,0.82367781]
[1763263105679,0.4603,3206.4,3205.8,0.637141]
[1763263107078,0.4663,3205.9,3205.8,0.637141]
[1763263107470,0.4663,3205.9,3205.8,1.46081881]
[1763263107793,0.9782,3205.9,3205.8,0.82367781]
[1763263107945,0.9782,3205.9,3205.6,0.82367781]
[1763263108145,0.4663,3205.7,3205.6,0.82367781]
[1763263108368,0.9266,3205.7,3205.5,1.10270308]
[1763263108563,0.4603,3205.7,3205.4,1.10270308]
[1763263108764,0.4623,3206.2,3205.6,0.5]
[1763263108970,0.4623,3206.2,3205.8,5.27932318]
[1763263109381,0.4623,3206.2,3205.9,0.82939474]
[1763263109762,0.4663,3206.0,3205.9,0.82939474]
[1763263111294,0.002,3206.2,3205.9,2.0912408]
[1763263111499,0.002,3206.5,3206.2,0.405504]
[1763263111782,0.1803,3207.6,3206.5,2.0392448]
[1763263111987,0.1803,3207.6,3206.8,4.94992844]
[1763263112289,0.16312421,3208.9,3206.9,0.405504]
[1763263112592,0.6476,3208.0,3207.6,0.82849598]
[1763263113157,0.6476,3208.0,3207.5,4.44992844]
[1763263113158,0.1873,3208.0,3207.7,0.82849598]
[1763263113351,0.4603,3208.6,3207.9,4.94992844]
[1763263113582,0.4603,3208.6,3208.0,0.82849598]
[1763263113757,0.4603,3208.6,3207.9,5.27842442]
[1763263114487,0.4963,3208.0,3207.9,4.44992844]
[1763263114697,0.4963,3208.0,3207.7,0.82849598]
[1763263114896,0.4963,3208.0,3207.7,1.58016427]
[1763263115200,0.4545,3208.2,3207.8,0.82849598]
[1763263115365,0.4963,3207.8,3207.6,0.82849598]
[1763263115566,0.4545,3209.0,3207.6,0.82849598]
[1763263115766,0.4545,3209.0,3207.7,0.476]
[1763263116494,0.4545,3209.0,3207.7,5.0731334]
[1763263116700,0.4545,3209.0,3207.8,0.59016294]
[1763263118069,0.4963,3207.9,3207.8,0.59016294]
[1763263118271,0.9951,3207.9,3207.5,0.82849598]
[1763263118469,0.4931,3207.6,3207.4,1.96223678]
[1763263118779,0.0443,3207.9,3207.4,1.96223678]
[1763263118979,0.4988,3207.9,3207.4,1.96223678]
[1763263119203,0.4988,3207.9,3207.4,1.1337408]
[1763263119404,0.4545,3208.2,3207.5,0.65593702]
[1763263119703,0.4963,3207.6,3207.5,0.65593702]
[1763263120100,0.1846,3208.1,3207.5,1.13193702]
[1763263120302,0.4545,3208.4,3207.5,1.60753702]
[1763263120705,0.4545,3208.4,3207.7,4.5971334]
[1763263120872,0.4545,3208.4,3207.8,0.45971334]
[1763263121473,0.4545,3208.6,3207.8,0.45971334]
[1763263121674,0.4545,3209.0,3208.1,4.5971334]
[1763263121873,0.4545,3209.0,3208.1,4.6767334]
[1763263122098,0.4545,3209.0,3208.1,5.1523334]
[1763263122298,0.4545,3209.0,3208.2,0.51523334]
[1763263122502,0.4545,3209.0,3208.2,1.64897414]
[1763263122702,0.4545,3209.0,3208.5,4.5971334]
[1763263123006,0.1803,3209.1,3208.6,1.1337408]
[1763263123319,0.1803,3209.3,3208.6,1.1337408]
[1763263123320,0.6348,3209.3,3208.6,1.1337408]
[1763263123600,0.6348,3209.3,3208.7,0.62064742]
[1763263124106,0.4963,3208.8,3208.7,0.62064742]
[1763263124271,0.4545,3209.2,3208.7,0.62064742]
[1763263124675,0.4963,3208.8,3208.7,0.62064742]
[1763263124903,0.5363,3208.8,3208.7,0.62064742]
[1763263125915,0.4963,3208.8,3208.7,0.62064742]
[1763263126079,0.4545,3209.0,3208.7,0.62064742]
[1763263126404,0.4545,3209.0,3208.9,0.476]
[1763263126405,0.002,3209.0,3208.9,0.476]
[1763263126579,0.002,3209.0,3208.9,5.0731334]
[1763263126774,0.4983,3209.0,3208.9,4.5971334]
[1763263126980,0.002,3209.0,3208.9,6.2068742]
[1763263131133,0.4983,3209.0,3208.9,5.7308742]
[1763263131335,0.9528,3209.0,3208.7,0.62064742]
[1763263131626,0.4963,3208.8,3208.5,1.1337408]
[1763263135638,0.002,3209.0,3208.7,0.476]
[1763263135931,0.002,3209.0,3208.9,0.476]
[1763263136236,0.1846,3208.9,3208.8,4.5971334]
[1763263136440,1.1354,3208.9,3208.5,1.1337408]
[1763263136744,1.1354,3208.9,3208.6,0.57308742]
[1763263136908,0.4545,3208.8,3208.6,0.57308742]
[1763263137237,0.4963,3208.7,3208.2,0.51523334]
[1763263137532,0.4963,3208.3,3207.6,4.5971334]
[1763263137739,0.0398,3208.0,3207.7,1.1337408]
[1763263138034,0.1846,3208.9,3207.7,1.1337408]
[1763263138339,0.4545,3208.3,3207.6,5.42562938]
[1763263138540,0.4545,3208.3,3207.7,1.67630374]
[1763263139519,0.4545,3208.6,3207.7,1.67630374]
[1763263139730,0.1846,3208.9,3207.7,2.50479972]
[1763263139933,0.1846,3208.9,3208.1,1.1337408]
[1763263140334,0.002,3209.0,3208.8,0.476]
[1763263140534,0.002,3209.0,3208.9,0.476]
[1763263140734,0.002,3209.0,3208.6,1.96223678]
[1763263140735,0.4963,3208.9,3208.6,1.96223678]
[1763263140925,0.002,3209.0,3208.7,0.65593702]
[1763263141241,0.002,3209.0,3208.9,0.476]
[1763263141446,0.002,3209.0,3208.9,1.30449598]
[1763263141607,0.002,3209.0,3208.9,0.82849598]
[1763263141943,0.002,3209.0,3208.9,1.30449598]
[1763263142113,0.002,3209.0,3208.9,1.77192512]
[1763263142307,0.002,3209.0,3208.9,0.94342914]
[1763263143118,0.002,3209.0,3208.9,0.46742914]
[1763263143318,0.4983,3209.0,3208.9,0.46742914]
[1763263143920,0.4983,3209.0,3208.9,4.53536183]
[1763263143921,0.002,3209.0,3208.9,4.53536183]
[1763263144146,0.1846,3212.0,3209.7,0.405504]
[1763263144319,0.4973,3211.3,3209.9,6.2223742]
[1763263144523,0.1868,3212.6,3211.3,0.405504]
[1763263144727,0.6819,3213.0,3211.9,0.6761]
[1763263144937,0.478,3212.0,3211.7,0.82261846]
[1763263145141,0.4973,3212.9,3211.7,1.1337408]
[1763263145338,0.4973,3212.9,3211.7,0.82261846]
[1763263145545,0.4973,3212.9,3211.5,0.82261846]
[1763263145755,0.4473,3212.9,3211.6,0.82261846]
[1763263146137,0.4473,3212.9,3211.4,1.95635926]
[1763263147024,0.4473,3212.9,3211.4,1.1337408]
[1763263147262,0.4473,3212.9,3211.2,1.1337408]
[1763263147432,0.405504,3212.8,3211.1,0.82261846]
[1763263147633,0.405504,3212.6,3210.9,1.1337408]
[1763263147835,0.4973,3212.8,3210.9,1.95635926]
[1763263148034,0.902804,3212.9,3210.9,1.95635926]
[1763263148231,0.902804,3212.9,3211.3,1.1337408]
[1763263148435,0.4973,3212.8,3211.3,1.1337408]
[1763263149661,0.4973,3212.8,3210.5,0.82261846]
[1763263149662,0.6152,3211.4,3210.5,0.82261846]
[1763263149857,0.0043,3211.3,3210.3,4.5971334]
[1763263150060,0.5016,3211.3,3210.1,0.82261846]
[1763263150769,0.1868,3212.0,3210.1,0.82261846]
[1763263150955,0.6841,3212.0,3210.9,5.41975186]
[1763263151126,0.6841,3212.0,3211.0,1.1337408]
[1763263151327,0.4284,3211.1,3210.6,1.95635926]
[1763263151534,0.4284,3211.1,3210.6,1.1337408]
[1763263151727,0.4966,3211.0,3210.2,2.44845926]
[1763263151960,0.4966,3211.0,3210.2,3.28158099]
[1763263152457,0.1868,3210.9,3210.2,2.78948099]
[1763263152659,0.1868,3210.9,3210.1,0.82261846]
[1763263152859,0.4973,3210.8,3209.8,0.82261846]
[1763263153560,0.1868,3210.9,3210.0,1.1337408]
[1763263153941,0.1868,3210.9,3210.1,0.184]
[1763263154264,0.1868,3210.9,3210.0,1.1337408]
[1763263154265,0.592,3210.9,3210.0,1.1337408]
[1763263154575,0.592,3210.9,3210.1,0.184]
[1763263154952,1.0,3210.6,3210.1,0.184]
[1763263155349,1.0,3210.6,3210.0,1.1337408]
[1763263155565,1.0,3210.6,3210.1,0.21515167]
[1763263155767,1.0,3210.6,3210.0,1.1337408]
[1763263155949,1.0,3210.6,3209.8,1.95635926]
[1763263156148,1.0,3210.6,3209.9,1.47796773]
[1763263156676,1.0,3210.6,3209.9,1.93706773]
[1763263158178,0.4552,3210.5,3209.9,0.82261846]
[1763263158375,0.4589,3210.0,3209.6,0.82261846]
[1763263158547,0.4552,3210.5,3209.6,0.82261846]
[1763263158744,0.4552,3210.5,3209.6,1.01456277]
[1763263159166,1.0,3210.6,3209.7,4.62828895]
[1763263159366,1.0,3210.6,3209.8,0.4591]
[1763263160367,0.4552,3210.5,3209.8,0.001]
[1763263161889,0.6421,3209.9,3209.8,0.001]
[1763263162073,0.4552,3210.5,3209.8,0.001]
[1763263163564,0.6421,3209.9,3209.8,0.001]
[1763263164457,1.0973,3209.9,3209.8,0.001]
[1763263166763,1.0973,3209.9,3209.4,0.001]
[1763263166991,0.0151,3209.5,3209.4,0.001]
[1763263167378,0.4703,3209.5,3209.4,0.001]
[1763263169600,0.405504,3209.4,3207.9,0.81837195]
[1763263169799,0.405504,3209.4,3207.9,1.02829161]
[1763263170001,0.405504,3209.2,3207.9,0.20991966]
[1763263170187,0.405504,3209.2,3207.7,0.81837195]
[1763263170386,0.4552,3209.1,3207.6,0.81837195]
[1763263170609,0.405504,3209.0,3207.6,0.81837195]
[1763263170827,0.1832,3209.0,3207.3,0.81837195]
[1763263171110,0.4552,3208.9,3207.3,0.81837195]
[1763263171298,0.4589,3207.4,3207.1,0.81837195]
[1763263171474,10.2,3208.4,3207.1,0.184]
[1763263171675,0.405504,3208.7,3207.1,0.184]
[1763263172175,0.405504,3208.5,3207.1,0.184]
[1763263172605,0.4552,3208.4,3207.1,0.184]
[1763263174719,0.4552,3208.4,3207.1,0.6395]
[1763263176324,0.4552,3208.4,3207.1,0.184]
[1763263177393,0.4552,3208.4,3207.1,0.6395]
[1763263179690,0.4552,3208.4,3207.1,0.184]
[1763263180727,0.4552,3208.4,3207.0,0.001]
[1763263181529,0.4552,3208.4,3207.1,0.185]
[1763263183551,0.4552,3208.4,3207.0,0.001]
[1763263183823,0.405504,3208.3,3207.1,0.185]
[1763263184023,0.4552,3208.4,3207.2,0.03117984]
[1763263184229,0.4783,3208.3,3207.3,0.18054206]
[1763263186216,0.4783,3208.6,3207.4,4.90067562]
[1763263186735,0.4783,3208.6,3207.3,0.18054206]
[1763263186917,0.4783,3208.6,3207.3,0.63604206]
[1763263187296,0.4783,3208.6,3207.3,0.18054206]
[1763263188500,0.4783,3208.6,3207.3,0.63604206]
[1763263189501,0.4783,3208.6,3207.4,0.4555]
[1763263193146,0.4783,3208.6,3207.3,0.99891401]
[1763263193487,0.4783,3208.6,3207.4,0.81837195]
[1763263193759,0.4783,3208.6,3207.4,1.14131989]
[1763263194248,0.4783,3208.6,3207.5,0.81837195]
[1763263195213,0.4783,3208.6,3207.6,0.81837195]
[1763263195750,0.4538,3207.7,3207.4,1.14131989]
[1763263195950,0.4538,3207.7,3207.4,0.81837195]
[1763263196140,0.4538,3207.7,3207.5,0.81837195]
[1763263197139,0.4538,3207.7,3207.6,0.81837195]
[1763263198862,0.9318,3207.7,3207.4,0.81837195]
[1763263199168,0.454,3207.5,3207.4,0.001]
[1763263199563,0.9318,3207.5,3207.4,0.001]
[1763263205673,0.405504,3208.1,3207.4,0.001]
[1763263205881,0.4564,3208.2,3207.4,0.5003]
[1763263206092,0.4754,3207.5,3207.4,0.001]
[1763263206291,0.4564,3208.1,3207.4,0.001]
[1763263206466,0.4564,3208.3,3207.4,0.5003]
[1763263206668,13.31620359,3209.1,3207.5,0.4631]
[1763263206669,10.2,3209.1,3207.5,0.4631]
[1763263206976,1.49472,3208.9,3207.5,0.4631]
[1763263207205,0.4564,3208.9,3207.5,0.4631]
[1763263207384,0.861904,3208.8,3207.5,1.28147195]
[1763263207693,0.4564,3208.8,3207.6,0.81837195]
[1763263207981,0.1832,3209.2,3207.6,0.81837195]
[1763263207982,0.4564,3208.7,3207.7,0.81837195]
[1763263209055,0.4564,3208.7,3207.6,1.28147195]
[1763263209269,0.4564,3208.7,3207.7,0.81837195]
[1763263210082,0.4564,3208.7,3207.8,0.81837195]
[1763263211402,0.4564,3208.7,3207.7,0.81837195]
[1763263213362,0.4564,3208.7,3207.7,1.28357195]
[1763263213758,0.4564,3208.7,3207.7,0.81837195]
[1763263214761,0.4564,3208.7,3207.8,1.28357195]
[1763263215299,0.4564,3208.7,3207.9,0.4652]
[1763263215805,0.4564,3208.7,3207.6,1.09682461]
[1763263215806,0.4564,3208.7,3207.7,1.28357195]
[1763263216370,0.4564,3208.7,3207.8,0.4652]
[1763263216902,1.0,3208.4,3207.8,0.4652]
[1763263218604,1.0,3208.4,3207.7,0.81837195]
[1763263218809,0.0729,3208.4,3208.3,6.21921642]
[1763263218973,0.0729,3208.4,3208.3,7.41116575]
[1763263219178,0.4505,3210.1,3208.4,1.1337408]
[1763263219375,0.4525,3209.8,3208.8,0.82474021]
[1763263219688,0.4525,3209.8,3208.7,0.82474021]
[1763263219903,0.4505,3209.7,3208.7,0.82474021]
[1763263220403,0.002,3209.8,3208.7,1.01717959]
[1763263220608,0.002,3209.8,3209.1,1.1337408]
[1763263220808,0.002,3209.8,3209.2,0.82474021]
[1763263221007,0.002,3209.8,3209.3,1.09965361]
[1763263221194,0.002,3209.8,3209.3,1.09687618]
[1763263221396,0.002,3209.8,3209.3,1.51869273]
[1763263221703,0.4505,3211.5,3209.4,0.405504]
[1763263221904,0.4505,3211.6,3210.3,4.44517562]
[1763263222211,0.4505,3211.5,3210.3,4.44517562]
[1763263222793,3.11285907,3212.5,3211.1,4.44517562]
[1763263222794,0.4505,3212.5,3211.1,4.44517562]
[1763263224216,0.4505,3212.9,3211.6,1.1337408]
[1763263226402,0.1942,3213.0,3211.9,4.44517562]
[1763263227137,0.4505,3212.9,3211.9,4.44517562]
[1763263227529,0.1942,3213.0,3211.9,4.44517562]
[1763263227707,0.1942,3213.0,3211.9,4.88969318]
[1763263228612,0.4505,3212.9,3211.6,1.1337408]
[1763263229641,1.5842408,3212.9,3210.9,4.44517562]
[1763263229804,1.5842408,3212.9,3210.5,4.44517562]
[1763263229805,0.856004,3212.8,3210.5,4.44517562]
[1763263230141,0.405504,3212.5,3210.5,4.44517562]
[1763263230433,3.11293736,3212.4,3210.6,1.1337408]
[1763263230634,1.06863286,3212.3,3210.6,1.1337408]
[1763263230851,1.51913286,3212.3,3210.6,1.1337408]
[1763263231086,0.4505,3212.2,3210.6,1.1337408]
[1763263231264,0.4505,3212.2,3210.5,4.44517562]
[1763263231545,0.4505,3212.2,3210.6,1.1337408]
[1763263232220,0.4505,3212.2,3210.6,1.58174021]
[1763263232742,0.4505,3212.2,3210.6,0.44799941]
[1763263232912,0.4505,3212.2,3210.4,1.1337408]
[1763263235845,0.4525,3212.2,3210.4,1.1337408]
[1763263236344,1.5862408,3212.2,3210.4,1.1337408]
[1763263236511,0.4525,3212.2,3210.4,1.1337408]
[1763263236712,0.4835,3212.1,3210.4,1.1337408]
[1763263236914,0.4835,3212.1,3210.5,0.55789164]
[1763263237111,0.4835,3212.1,3210.3,1.1337408]
[1763263237423,0.4835,3212.1,3209.8,1.5392448]
[1763263238511,0.405504,3212.0,3209.4,0.82228149]
[1763263238725,1.5392448,3211.7,3209.3,0.42181655]
[1763263238931,1.5392448,3211.4,3209.3,0.42181655]
[1763263239242,0.61283619,3211.3,3208.9,0.405504]
[1763263239430,1.09633619,3211.3,3208.9,1.22778549]
[1763263239629,0.4835,3211.2,3209.3,1.1337408]
[1763263241167,0.1872,3211.9,3210.8,4.58911714]
[1763263241329,0.4835,3212.3,3210.9,1.62379642]
[1763263241528,0.97222004,3212.8,3211.4,1.1337408]
[1763263241755,0.4835,3212.8,3211.4,1.1337408]
[1763263242568,0.1942,3213.0,3211.0,0.405504]
[1763263242726,0.4855,3212.2,3210.9,1.59265251]
[1763263242932,0.4855,3212.2,3211.0,0.61817696]
[1763263244364,0.4855,3212.2,3210.5,0.82228149]
[1763263244365,0.4855,3212.2,3210.6,0.405504]
[1763263244552,0.4855,3212.2,3210.4,1.95602229]
[1763263244755,0.4855,3212.2,3210.4,1.1337408]
[1763263245272,0.4855,3212.2,3210.4,1.95602229]
[1763263245644,0.4855,3212.2,3210.3,4.58911714]
[1763263245645,0.405504,3212.1,3210.3,0.82228149]
[1763263245846,0.20247448,3212.0,3210.3,4.58911714]
[1763263246176,0.4835,3212.0,3210.1,1.95602229]
[1763263246354,0.1872,3211.9,3210.2,0.82228149]
[1763263246558,0.4835,3211.8,3210.2,0.82228149]
[1763263247395,0.4835,3211.8,3210.4,0.82228149]
[1763263248295,0.4835,3211.8,3210.6,0.82228149]
[1763263249309,0.4835,3211.8,3210.7,0.82228149]
[1763263250169,0.4835,3211.8,3210.8,0.82228149]
[1763263251181,0.4835,3211.8,3210.9,0.82228149]
[1763263251581,0.4506,3211.0,3210.9,0.82228149]
[1763263251777,0.4506,3211.0,3210.5,0.82228149]
[1763263251983,0.6378,3210.6,3210.4,0.82228149]
[1763263252182,0.1872,3210.6,3210.4,0.82228149]
[1763263252410,13.31334919,3212.0,3210.4,0.82228149]
[1763263252411,0.002,3212.2,3210.5,9.20577608]
[1763263252719,0.002,3212.2,3211.6,0.82249287]
[1763263252926,0.4855,3212.2,3211.5,0.82249287]
[1763263253072,0.002,3212.2,3211.6,0.82249287]
[1763263253586,0.4855,3212.2,3211.6,0.82249287]
[1763263253823,0.4855,3212.2,3211.6,1.01440787]
[1763263254232,0.4855,3212.2,3211.6,0.82249287]
[1763263254419,0.4855,3212.2,3211.5,0.82249287]
[1763263254624,0.4855,3212.2,3211.3,0.82249287]
[1763263254966,0.002,3211.8,3211.3,0.82249287]
[1763263256230,0.002,3211.8,3211.4,0.82249287]
[1763263257144,0.4855,3211.8,3211.4,0.82249287]
[1763263257345,0.4506,3211.5,3211.1,0.82249287]
[1763263257651,0.4855,3211.8,3211.1,1.01440787]
[1763263257848,0.002,3211.8,3211.2,0.82249287]
[1763263258361,0.002,3211.8,3211.3,0.82249287]
[1763263258717,0.4855,3211.8,3211.3,0.82249287]
[1763263263170,0.002,3211.8,3211.2,0.82249287]
[1763263263350,0.4855,3211.8,3211.2,0.82249287]
[1763263267808,0.002,3211.8,3211.7,1.5392448]
[1763263267987,0.002,3211.8,3211.7,1.57038095]
[1763263268188,0.002,3211.8,3211.7,1.5392448]
[1763263268488,0.1965,3213.7,3211.8,0.405504]
[1763263268744,0.1965,3213.7,3212.7,0.82300216]
[1763263269004,0.6739,3213.7,3212.8,0.82300216]
[1763263269224,0.6739,3213.7,3212.6,1.09733621]
[1763263269225,0.1965,3213.7,3212.6,0.82300216]
[1763263269398,0.1965,3213.7,3213.0,0.82300216]
[1763263269605,0.4774,3213.6,3213.0,0.82300216]
[1763263269798,0.4774,3213.6,3212.9,0.82300216]
[1763263270115,0.1965,3213.7,3212.9,0.82300216]
[1763263270317,0.1965,3213.7,3212.9,1.12841008]
[1763263270479,0.1965,3213.7,3212.9,0.82300216]
[1763263270480,0.6739,3213.7,3212.9,0.82300216]
[1763263270812,0.09455878,3214.0,3212.9,0.82300216]
[1763263271021,0.4774,3213.9,3212.9,0.82300216]
[1763263271203,0.4774,3213.9,3212.7,2.23107701]
[1763263271204,0.4774,3213.9,3212.8,0.82300216]
[1763263272020,0.09455878,3214.0,3212.9,4.58911714]
[1763263272201,0.09455878,3214.0,3213.4,1.1337408]
[1763263272387,0.09455878,3214.0,3213.5,0.82300216]
[1763263272587,0.09455878,3214.0,3213.6,0.82300216]
[1763263273004,0.09455878,3214.0,3213.7,0.82300216]
[1763263273180,0.09455878,3214.0,3213.5,0.82300216]
[1763263273479,0.09455878,3214.0,3213.9,0.405504]
[1763263273679,0.09655878,3214.0,3213.8,1.09733621]
[1763263273884,0.09655878,3214.0,3213.9,0.81842376]
[1763263274192,0.09655878,3214.0,3213.9,1.1337408]
[1763263277093,0.09655878,3214.0,3213.9,1.5392448]
[1763263277294,0.09655878,3214.0,3213.9,1.74657699]
[1763263277690,0.09655878,3214.0,3213.9,0.61283619]
[1763263277897,0.09655878,3214.0,3213.6,0.1956743]
[1763263278300,0.4832,3213.7,3213.1,0.81842376]
[1763263278522,0.4832,3213.7,3212.9,4.58911714]
[1763263278523,0.09655878,3214.0,3212.9,5.4075409]
[1763263278731,0.1901,3213.9,3212.9,5.4075409]
[1763263278891,0.1901,3213.9,3213.0,1.1337408]
[1763263279087,0.4623,3213.8,3213.0,1.1337408]
[1763263279426,0.1901,3213.9,3213.1,0.57228579]
[1763263280038,0.09655878,3214.0,3213.1,0.57228579]
[1763263280528,0.1901,3213.9,3213.1,0.57228579]
[1763263280734,0.09655878,3214.0,3213.1,0.57228579]
[1763263281631,0.09655878,3214.0,3213.5,1.1337408]
[1763263281802,0.09655878,3214.0,3213.6,0.57228579]
[1763263282184,0.09655878,3214.0,3213.9,1.1337408]
[1763263282386,0.09655878,3214.0,3213.6,5.16140293]
[1763263282746,0.09655878,3214.0,3213.7,1.1337408]
[1763263284755,0.1901,3213.9,3213.6,0.57228579]
[1763263285066,0.4832,3213.8,3213.2,1.1337408]
[1763263285262,0.1901,3213.9,3213.2,1.1337408]
[1763263285829,0.09655878,3214.0,3213.8,1.1337408]
[1763263286058,0.09655878,3214.0,3213.8,0.57228579]
[1763263286240,0.09655878,3214.0,3213.3,1.1337408]
[1763263286837,0.09655878,3214.0,3213.1,1.39070955]
[1763263287161,0.09655878,3214.0,3213.4,1.1337408]
[1763263288066,0.1901,3213.9,3213.1,0.57228579]
[1763263288366,0.09655878,3214.0,3213.3,1.1337408]
[1763263288739,0.4832,3213.4,3212.8,0.30540792]
[1763263289049,0.6524,3213.9,3212.7,1.1337408]
[1763263289425,0.09655878,3214.0,3213.1,4.58911714]
[1763263289630,0.09655878,3214.0,3213.2,1.1337408]
[1763263290040,0.1901,3213.9,3213.2,1.1337408]
[1763263290226,0.1901,3213.9,3213.3,0.65412817]
[1763263292848,0.1901,3213.9,3213.2,1.1337408]
[1763263292849,0.4623,3213.8,3212.9,0.81842376]
[1763263294252,0.4623,3213.8,3213.0,0.81842376]
[1763263294687,0.4623,3213.8,3212.9,0.81842376]
[1763263295263,0.4623,3213.8,3213.0,0.81842376]
[1763263297199,0.4623,3213.8,3213.2,0.81842376]
[1763263297679,0.4711,3213.3,3213.2,0.81842376]
[1763263298083,0.9356,3213.3,3213.1,0.81842376]
[1763263298277,0.9356,3213.3,3212.8,1.1337408]
[1763263298278,0.9356,3213.3,3213.2,0.81842376]
[1763263298653,0.4645,3213.8,3213.2,0.81842376]
[1763263299347,0.4645,3213.8,3213.3,0.81842376]
[1763263299499,0.4645,3213.8,3213.2,0.81842376]
[1763263299937,0.4711,3213.3,3213.2,0.81842376]
[1763263300458,0.09655878,3214.0,3213.2,1.3253168]
[1763263300740,0.09655878,3214.0,3213.6,0.82220788]
[1763263301243,0.09655878,3214.0,3213.7,0.82220788]
[1763263302549,0.09655878,3214.0,3213.9,0.82220788]
[1763263302749,0.09655878,3214.0,3213.8,1.09733621]
[1763263303250,0.09655878,3214.0,3213.6,1.1337408]
[1763263303251,0.661,3213.9,3213.7,1.09733621]
[1763263304311,0.661,3213.9,3213.8,1.09733621]
[1763263304750,0.1899,3213.9,3213.8,1.09733621]
[1763263304947,0.09655878,3214.0,3213.8,1.09733621]
[1763263305312,0.4711,3213.9,3213.8,1.09733621]
[1763263305515,0.661,3213.9,3213.8,1.09733621]
[1763263307152,1.1255,3213.9,3213.7,0.82302929]
[1763263307352,0.4711,3213.7,3213.4,0.82302929]
[1763263307654,0.4711,3213.5,3213.3,0.82302929]
[1763263307815,0.405504,3213.6,3212.6,1.09733621]
[1763263308012,0.4711,3213.2,3212.6,1.09733621]
[1763263308217,0.4645,3213.8,3212.6,1.09733621]
[1763263308218,0.4711,3212.7,3212.6,1.09733621]
[1763263308839,0.1899,3212.9,3212.6,1.09733621]
[1763263309219,0.1899,3212.9,3212.5,1.09733621]
[1763263309655,0.1899,3213.2,3212.6,1.09733621]
[1763263311331,0.6544,3213.2,3212.6,1.09733621]
[1763263311562,0.597404,3213.9,3213.1,0.4947]
[1763263311873,0.002,3213.9,3213.8,0.4947]
[1763263312028,0.002,3213.9,3213.8,0.71546441]
[1763263312231,0.002,3213.9,3213.6,1.1337408]
[1763263312232,1.1275,3213.9,3213.6,1.09733621]
[1763263312533,0.1919,3213.9,3213.5,1.09733621]
[1763263312749,0.002,3213.9,3213.5,1.09733621]